[Event "*** Titled Tuesday Blitz"]
[Site "Chess.com"]
[Date "2019.04.02"]
[Round "5"]
[White "stepanosinovsky"]
[Black "JSMastropiero"]
[Result "1-0"]
[WhiteElo "2309"]
[BlackElo "2251"]
[TimeControl "180+2"]
[EndTime "15:03:35 PDT"]
[Termination "stepanosinovsky won by resignation"]

1. e4 {[%clk 0:03:01.9]} 1... e6 {[%clk 0:02:59.1]} 2. d4 {[%clk 0:03:02.3]}
2... d5 {[%clk 0:02:59.4]} 3. exd5 {[%clk 0:03:04.2]} 3... exd5 {[%clk 0:03:00]}
4. Nc3 {[%clk 0:03:06.1]} 4... Bb4 {[%clk 0:02:58.6]} 5. Ne2 {[%clk 0:03:04.8]}
5... c6 {[%clk 0:02:53.6]} 6. a3 {[%clk 0:03:05.6]} 6... Bd6 {[%clk 0:02:54]} 7.
Bf4 {[%clk 0:03:05.8]} 7... Ne7 {[%clk 0:02:52.5]} 8. Qd2 {[%clk 0:03:05.8]}
8... O-O {[%clk 0:02:46.4]} 9. h4 {[%clk 0:02:57.1]} 9... Na6 {[%clk 0:02:36.5]}
10. O-O-O {[%clk 0:02:56.3]} 10... Nc7 {[%clk 0:02:33.4]} 11. h5 {[%clk
0:02:53.9]} 11... b5 {[%clk 0:02:31.1]} 12. h6 {[%clk 0:02:53.7]} 12... g6
{[%clk 0:02:30]} 13. Bxd6 {[%clk 0:02:33.3]} 13... Qxd6 {[%clk 0:02:30]} 14. Nf4
{[%clk 0:02:27.9]} 14... a5 {[%clk 0:02:25.8]} 15. Nce2 {[%clk 0:02:00.8]} 15...
b4 {[%clk 0:02:12.7]} 16. a4 {[%clk 0:02:01.5]} 16... b3 {[%clk 0:02:13.5]} 17.
cxb3 {[%clk 0:01:53]} 17... Na6 {[%clk 0:02:07.8]} 18. Nd3 {[%clk 0:01:41.6]}
18... c5 {[%clk 0:01:57.2]} 19. dxc5 {[%clk 0:01:34.3]} 19... Nxc5 {[%clk
0:01:53.8]} 20. Nxc5 {[%clk 0:01:35.3]} 20... Qxc5+ {[%clk 0:01:54.1]} 21. Qc3
{[%clk 0:01:36.6]} 21... Qxc3+ {[%clk 0:01:44.7]} 22. bxc3 {[%clk 0:01:33]}
22... Rb8 {[%clk 0:01:40.8]} 23. Nd4 {[%clk 0:01:31.5]} 23... Bd7 {[%clk
0:01:38.5]} 24. Bb5 {[%clk 0:01:26.4]} 24... Bxb5 {[%clk 0:01:34.8]} 25. axb5
{[%clk 0:01:20.3]} 25... Rfc8 {[%clk 0:01:36.1]} 26. Kb2 {[%clk 0:01:19.4]}
26... Rc5 {[%clk 0:01:21.2]} 27. Ra1 {[%clk 0:01:13.1]} 27... Nc8 {[%clk
0:01:15.9]} 28. Rxa5 {[%clk 0:01:07.3]} 28... Nd6 {[%clk 0:01:16.7]} 29. Rha1
{[%clk 0:00:58.9]} 29... Ne4 {[%clk 0:01:03.6]} 30. Ra8 {[%clk 0:00:56.8]} 30...
Rcc8 {[%clk 0:01:03.1]} 31. Rxb8 {[%clk 0:00:54.4]} 31... Rxb8 {[%clk 0:01:05]}
32. b6 {[%clk 0:00:43.4]} 32... f6 {[%clk 0:01:01.9]} 33. Ra7 {[%clk 0:00:34.1]}
33... Rxb6 {[%clk 0:00:59.6]} 34. Rg7+ {[%clk 0:00:31.1]} 34... Kf8 {[%clk
0:00:52.6]} 35. Rxh7 {[%clk 0:00:28.2]} 35... Nxf2 {[%clk 0:00:53.3]} 36. Rh8+
{[%clk 0:00:23.2]} 36... Kf7 {[%clk 0:00:54.3]} 37. Rc8 {[%clk 0:00:20.9]} 37...
Nd3+ {[%clk 0:00:27.7]} 38. Kb1 {[%clk 0:00:21.5]} 38... Nc5 {[%clk 0:00:26]}
39. h7 {[%clk 0:00:22.2]} 39... Nxb3 {[%clk 0:00:25.5]} 40. Nxb3 {[%clk
0:00:23.3]} 40... Rxb3+ {[%clk 0:00:26.2]} 41. Kc2 {[%clk 0:00:24.9]} 1-0

[Event "*** Titled Tuesday Blitz"]
[Site "Chess.com"]
[Date "2019.04.02"]
[Round "5"]
[White "Mikhail_Golubev"]
[Black "Schachmalanders"]
[Result "1-0"]
[WhiteElo "2426"]
[BlackElo "2274"]
[TimeControl "180+2"]
[EndTime "15:03:46 PDT"]
[Termination "Mikhail_Golubev won by resignation"]

1. e4 {[%clk 0:03:01.9]} 1... c5 {[%clk 0:03:00.6]} 2. Nf3 {[%clk 0:03:02.3]}
2... d6 {[%clk 0:03:01.2]} 3. d4 {[%clk 0:03:03]} 3... cxd4 {[%clk 0:03:02.4]}
4. Nxd4 {[%clk 0:03:04]} 4... Nf6 {[%clk 0:03:03.8]} 5. Nc3 {[%clk 0:03:04.9]}
5... g6 {[%clk 0:03:05.3]} 6. Be3 {[%clk 0:03:05]} 6... Bg7 {[%clk 0:03:05.8]}
7. f3 {[%clk 0:03:05.9]} 7... O-O {[%clk 0:03:07]} 8. Qd2 {[%clk 0:03:07]} 8...
Nc6 {[%clk 0:03:08.4]} 9. Bc4 {[%clk 0:03:07]} 9... a6 {[%clk 0:03:06.5]} 10.
Bb3 {[%clk 0:03:04.5]} 10... Bd7 {[%clk 0:03:06.6]} 11. O-O-O {[%clk 0:03:00.1]}
11... b5 {[%clk 0:03:07.6]} 12. h4 {[%clk 0:02:55.6]} 12... Nxd4 {[%clk
0:02:53.1]} 13. Bxd4 {[%clk 0:02:55.7]} 13... a5 {[%clk 0:02:54.1]} 14. e5
{[%clk 0:02:33.3]} 14... dxe5 {[%clk 0:02:38.9]} 15. Bxe5 {[%clk 0:02:34.1]}
15... a4 {[%clk 0:02:39.3]} 16. Bd5 {[%clk 0:02:10.8]} 16... Nxd5 {[%clk
0:02:35.9]} 17. Bxg7 {[%clk 0:02:08]} 17... Kxg7 {[%clk 0:02:30.4]} 18. Qxd5
{[%clk 0:01:58.1]} 18... b4 {[%clk 0:02:14.9]} 19. Qd4+ {[%clk 0:01:28.2]} 19...
Kg8 {[%clk 0:02:11.5]} 20. Qxb4 {[%clk 0:01:18.8]} 20... Qc7 {[%clk 0:02:00.2]}
21. Nd5 {[%clk 0:01:16.1]} 21... Qa7 {[%clk 0:01:43.9]} 22. Qxe7 {[%clk
0:01:11.5]} 22... Be6 {[%clk 0:01:35.9]} 23. Qxa7 {[%clk 0:00:36.9]} 23... Rxa7
{[%clk 0:01:37.8]} 24. a3 {[%clk 0:00:33.2]} 24... Rb8 {[%clk 0:01:35.9]} 25.
Nb4 {[%clk 0:00:30.8]} 25... Rc7 {[%clk 0:01:35.4]} 26. Rd4 {[%clk 0:00:30.7]}
26... Rbc8 {[%clk 0:01:36.3]} 27. Rhd1 {[%clk 0:00:28.9]} 27... Bf5 {[%clk
0:01:35.8]} 28. Rd8+ {[%clk 0:00:23.8]} 28... Kg7 {[%clk 0:01:37.2]} 29. Rxc8
{[%clk 0:00:23.9]} 29... Rxc8 {[%clk 0:01:39.1]} 30. Rd4 {[%clk 0:00:21.7]}
30... Re8 {[%clk 0:01:39.1]} 31. Kd2 {[%clk 0:00:22.3]} 31... h5 {[%clk
0:01:39.9]} 32. Nd3 {[%clk 0:00:21]} 32... Rb8 {[%clk 0:01:37]} 33. Rb4 {[%clk
0:00:18.7]} 33... Rd8 {[%clk 0:01:34.4]} 34. Rxa4 {[%clk 0:00:18.2]} 34... Rd5
{[%clk 0:01:35.5]} 35. Rb4 {[%clk 0:00:16.8]} 35... Rd6 {[%clk 0:01:35.4]} 36.
a4 {[%clk 0:00:17.5]} 36... Ra6 {[%clk 0:01:35.1]} 37. b3 {[%clk 0:00:17.5]}
37... f6 {[%clk 0:01:36.3]} 38. Rd4 {[%clk 0:00:18.4]} 38... g5 {[%clk
0:01:37.4]} 39. Rd5 {[%clk 0:00:11.8]} 39... Be6 {[%clk 0:01:34.9]} 40. Nc5
{[%clk 0:00:10.2]} 40... Bxd5 {[%clk 0:01:30.1]} 41. Nxa6 {[%clk 0:00:10.9]}
41... gxh4 {[%clk 0:01:32]} 42. Ke3 {[%clk 0:00:10.9]} 42... Kg6 {[%clk
0:01:30.1]} 43. Nc7 {[%clk 0:00:09]} 43... Bb7 {[%clk 0:01:31.3]} 44. a5 {[%clk
0:00:09.8]} 44... Kg5 {[%clk 0:01:32.5]} 45. a6 {[%clk 0:00:09.6]} 45... Bc6
{[%clk 0:01:34.4]} 46. a7 {[%clk 0:00:10]} 46... h3 {[%clk 0:01:36.3]} 47. gxh3
{[%clk 0:00:09.3]} 47... Kh4 {[%clk 0:01:37.8]} 48. a8=Q {[%clk 0:00:09.2]}
48... Bxa8 {[%clk 0:01:39.7]} 49. Nxa8 {[%clk 0:00:10.1]} 49... Kxh3 {[%clk
0:01:41.6]} 50. Kf2 {[%clk 0:00:11]} 50... Kh2 {[%clk 0:01:41.1]} 51. Nc7 {[%clk
0:00:11.6]} 51... h4 {[%clk 0:01:43]} 52. Ne6 {[%clk 0:00:11.4]} 52... f5 {[%clk
0:01:44.9]} 53. Nf4 {[%clk 0:00:11.8]} 53... h3 {[%clk 0:01:45.2]} 54. b4 {[%clk
0:00:11.4]} 54... Kh1 {[%clk 0:01:46.1]} 55. Nxh3 {[%clk 0:00:12.3]} 55... Kh2
{[%clk 0:01:48]} 56. Nf4 {[%clk 0:00:13.4]} 56... Kh1 {[%clk 0:01:49.4]} 57. b5
{[%clk 0:00:14.3]} 57... Kh2 {[%clk 0:01:51.3]} 58. b6 {[%clk 0:00:15.5]} 58...
Kh1 {[%clk 0:01:53.2]} 59. b7 {[%clk 0:00:16.3]} 59... Kh2 {[%clk 0:01:55.1]}
60. c3 {[%clk 0:00:16.6]} 60... Kh1 {[%clk 0:01:53.6]} 61. c4 {[%clk 0:00:16.4]}
1-0

[Event "*** Titled Tuesday Blitz"]
[Site "Chess.com"]
[Date "2019.04.02"]
[Round "5"]
[White "Annawel"]
[Black "Gareth-Bale11"]
[Result "1-0"]
[WhiteElo "2892"]
[BlackElo "2704"]
[TimeControl "180+2"]
[EndTime "15:03:48 PDT"]
[Termination "Annawel won by resignation"]

1. e4 {[%clk 0:03:01.9]} 1... e5 {[%clk 0:02:54.1]} 2. Nf3 {[%clk 0:03:02.9]}
2... Nc6 {[%clk 0:02:54]} 3. Bb5 {[%clk 0:03:04]} 3... a6 {[%clk 0:02:54.5]} 4.
Ba4 {[%clk 0:03:05.4]} 4... Nf6 {[%clk 0:02:54.6]} 5. O-O {[%clk 0:03:06.7]}
5... b5 {[%clk 0:02:55.3]} 6. Bb3 {[%clk 0:03:07.9]} 6... Bb7 {[%clk 0:02:56.8]}
7. Re1 {[%clk 0:03:06]} 7... Be7 {[%clk 0:02:54.6]} 8. d4 {[%clk 0:02:56.9]}
8... d6 {[%clk 0:02:53.3]} 9. c3 {[%clk 0:02:51.5]} 9... O-O {[%clk 0:02:52.4]}
10. h3 {[%clk 0:02:51.4]} 10... Re8 {[%clk 0:02:47.9]} 11. Nbd2 {[%clk 0:02:50]}
11... Bf8 {[%clk 0:02:48.1]} 12. d5 {[%clk 0:02:43.6]} 12... Ne7 {[%clk
0:02:32]} 13. Nf1 {[%clk 0:02:36.9]} 13... h6 {[%clk 0:02:23.9]} 14. Ng3 {[%clk
0:02:34.3]} 14... g6 {[%clk 0:02:25.1]} 15. a4 {[%clk 0:02:29.4]} 15... Nd7
{[%clk 0:02:18.8]} 16. Bc2 {[%clk 0:02:15]} 16... Bg7 {[%clk 0:02:16.5]} 17. Qe2
{[%clk 0:02:11.5]} 17... Nc5 {[%clk 0:02:11.9]} 18. a5 {[%clk 0:02:04.1]} 18...
c6 {[%clk 0:02:05.7]} 19. b4 {[%clk 0:01:48.5]} 19... Nd7 {[%clk 0:02:04.9]} 20.
dxc6 {[%clk 0:01:49.6]} 20... Nxc6 {[%clk 0:02:03.2]} 21. Be3 {[%clk 0:01:46.5]}
21... Rc8 {[%clk 0:01:50.7]} 22. Rad1 {[%clk 0:01:43.9]} 22... Qf6 {[%clk
0:01:50.3]} 23. Qd2 {[%clk 0:01:44]} 23... Nf8 {[%clk 0:01:43.9]} 24. Bxh6
{[%clk 0:01:32.7]} 24... Bxh6 {[%clk 0:01:41.6]} 25. Qxh6 {[%clk 0:01:34.6]}
25... Nxb4 {[%clk 0:01:34.4]} 26. cxb4 {[%clk 0:01:25.1]} 26... Rxc2 {[%clk
0:01:32]} 27. Rxd6 {[%clk 0:01:12.4]} 27... Ne6 {[%clk 0:01:08]} 28. Rb6 {[%clk
0:00:54.6]} 28... Bc8 {[%clk 0:01:01]} 29. Nf5 {[%clk 0:00:55.6]} 29... Qh8
{[%clk 0:00:49.3]} 30. Qxh8+ {[%clk 0:00:54.9]} 30... Kxh8 {[%clk 0:00:51.2]}
31. Nd6 {[%clk 0:00:56.6]} 31... Re7 {[%clk 0:00:52]} 32. Nxe5 {[%clk
0:00:57.9]} 32... Kg7 {[%clk 0:00:48.6]} 33. Nc6 {[%clk 0:00:56.2]} 33... Rc7
{[%clk 0:00:46.5]} 34. Ne8+ {[%clk 0:00:57.4]} 34... Kf8 {[%clk 0:00:45.9]} 35.
Nxc7 {[%clk 0:00:59.3]} 35... Nxc7 {[%clk 0:00:46.2]} 36. Nd4 {[%clk 0:00:52.7]}
36... Rc4 {[%clk 0:00:45.3]} 37. Rb8 {[%clk 0:00:46.5]} 37... Ne8 {[%clk
0:00:36.9]} 38. e5 {[%clk 0:00:47.1]} 38... Ke7 {[%clk 0:00:34.5]} 39. e6 {[%clk
0:00:34.8]} 39... fxe6 {[%clk 0:00:29.8]} 40. Rxc8 {[%clk 0:00:28.6]} 40... Rxc8
{[%clk 0:00:30.7]} 41. Rxe6+ {[%clk 0:00:29.7]} 41... Kf7 {[%clk 0:00:29.4]} 42.
Rxa6 {[%clk 0:00:30]} 42... Rc4 {[%clk 0:00:28.2]} 43. Nxb5 {[%clk 0:00:30.7]}
43... Rxb4 {[%clk 0:00:26.8]} 44. Nd6+ {[%clk 0:00:32]} 44... Nxd6 {[%clk
0:00:27.1]} 45. Rxd6 {[%clk 0:00:33.9]} 1-0

[Event "*** Titled Tuesday Blitz"]
[Site "Chess.com"]
[Date "2019.04.02"]
[Round "5"]
[White "Blitzstream"]
[Black "fu24"]
[Result "1-0"]
[WhiteElo "2675"]
[BlackElo "2515"]
[TimeControl "180+2"]
[EndTime "15:03:48 PDT"]
[Termination "Blitzstream won by resignation"]

1. e4 {[%clk 0:03:01.9]} 1... e6 {[%clk 0:03:01.9]} 2. d4 {[%clk 0:03:02.7]}
2... d5 {[%clk 0:03:02.7]} 3. Nd2 {[%clk 0:03:04.4]} 3... Be7 {[%clk 0:03:03.7]}
4. Ngf3 {[%clk 0:03:03.8]} 4... Nf6 {[%clk 0:03:04.8]} 5. e5 {[%clk 0:03:05.3]}
5... Nfd7 {[%clk 0:03:06.3]} 6. Bd3 {[%clk 0:03:07]} 6... c5 {[%clk 0:03:07.8]}
7. c3 {[%clk 0:03:08.5]} 7... b6 {[%clk 0:03:09.3]} 8. O-O {[%clk 0:03:08.5]}
8... Ba6 {[%clk 0:03:10.8]} 9. Bxa6 {[%clk 0:03:10]} 9... Nxa6 {[%clk
0:03:12.7]} 10. Re1 {[%clk 0:03:11.6]} 10... b5 {[%clk 0:03:12.7]} 11. Nf1
{[%clk 0:03:12.5]} 11... c4 {[%clk 0:03:10.3]} 12. Ng3 {[%clk 0:03:13.4]} 12...
Nb6 {[%clk 0:02:26.2]} 13. Qd2 {[%clk 0:03:10]} 13... Kd7 {[%clk 0:02:22.7]} 14.
Qf4 {[%clk 0:03:10.1]} 14... Qg8 {[%clk 0:02:14.3]} 15. b4 {[%clk 0:03:10]}
15... Rf8 {[%clk 0:02:10.6]} 16. h4 {[%clk 0:03:05.1]} 16... Nc7 {[%clk
0:02:10.3]} 17. h5 {[%clk 0:02:54.1]} 17... f5 {[%clk 0:01:57.6]} 18. exf6
{[%clk 0:02:52.4]} 18... gxf6 {[%clk 0:01:57.5]} 19. Nf5 {[%clk 0:02:40.1]}
19... Nc8 {[%clk 0:01:34.8]} 20. Nxe7 {[%clk 0:02:28.7]} 20... Nxe7 {[%clk
0:01:36.7]} 21. a4 {[%clk 0:02:30.3]} 21... Nc6 {[%clk 0:01:11]} 22. axb5 {[%clk
0:02:23.9]} 22... Nxb5 {[%clk 0:01:12.9]} 23. Bd2 {[%clk 0:02:12.4]} 23... Rf7
{[%clk 0:01:13.9]} 24. Ra6 {[%clk 0:02:09.6]} 24... Qb8 {[%clk 0:01:13.3]} 25.
Ne5+ {[%clk 0:01:45.8]} 25... Nxe5 {[%clk 0:01:08.3]} 26. dxe5 {[%clk
0:01:46.7]} 26... Qb7 {[%clk 0:00:46.5]} 27. Rea1 {[%clk 0:01:10.7]} 27... f5
{[%clk 0:00:44.6]} 28. Be3 {[%clk 0:01:07.6]} 28... Kc8 {[%clk 0:00:32.6]} 29.
Bd4 {[%clk 0:00:59.8]} 29... Re8 {[%clk 0:00:31.1]} 30. g3 {[%clk 0:00:58.8]}
30... Kb8 {[%clk 0:00:31.9]} 31. Qe3 {[%clk 0:00:59]} 31... Ree7 {[%clk
0:00:29.1]} 32. Bxa7+ {[%clk 0:00:58.5]} 32... Nxa7 {[%clk 0:00:29.8]} 33. Rb6
{[%clk 0:00:59.4]} 33... Ka8 {[%clk 0:00:28.6]} 34. Rxb7 {[%clk 0:01:00]} 34...
Rxb7 {[%clk 0:00:30.5]} 35. Qc5 {[%clk 0:00:59.3]} 35... Kb8 {[%clk 0:00:29.1]}
36. Qd6+ {[%clk 0:00:58.3]} 36... Rbc7 {[%clk 0:00:29.6]} 37. b5 {[%clk
0:00:53.8]} 37... Nc8 {[%clk 0:00:11.8]} 38. Qxe6 {[%clk 0:00:43.6]} 38... Rb7
{[%clk 0:00:13]} 39. Qxd5 {[%clk 0:00:42]} 39... Rfc7 {[%clk 0:00:13.8]} 40. e6
{[%clk 0:00:40]} 40... Ne7 {[%clk 0:00:14.9]} 41. Qe5 {[%clk 0:00:33.8]} 41...
Rb6 {[%clk 0:00:16.3]} 42. Rd1 {[%clk 0:00:31]} 42... Kb7 {[%clk 0:00:16.6]} 43.
Rd7 {[%clk 0:00:31.3]} 1-0

[Event "*** Titled Tuesday Blitz"]
[Site "Chess.com"]
[Date "2019.04.02"]
[Round "5"]
[White "KenanGarayev"]
[Black "Guenplen"]
[Result "0-1"]
[WhiteElo "2760"]
[BlackElo "2921"]
[TimeControl "180+2"]
[EndTime "15:03:51 PDT"]
[Termination "Guenplen won by resignation"]

1. Nf3 {[%clk 0:02:34.3]} 1... d5 {[%clk 0:03:00.2]} 2. g3 {[%clk 0:02:33]} 2...
c6 {[%clk 0:02:59.3]} 3. Bg2 {[%clk 0:02:32.9]} 3... Bg4 {[%clk 0:02:59.8]} 4.
O-O {[%clk 0:02:31.4]} 4... e6 {[%clk 0:02:59.7]} 5. b3 {[%clk 0:02:28]} 5...
Nf6 {[%clk 0:02:58.4]} 6. Bb2 {[%clk 0:02:28.7]} 6... Be7 {[%clk 0:02:59.6]} 7.
d3 {[%clk 0:02:27]} 7... O-O {[%clk 0:02:59.7]} 8. Nbd2 {[%clk 0:02:27.5]} 8...
a5 {[%clk 0:03:00.3]} 9. a3 {[%clk 0:02:27]} 9... Nfd7 {[%clk 0:02:57.9]} 10.
Ne5 {[%clk 0:02:25.9]} 10... Nxe5 {[%clk 0:02:57.7]} 11. Bxe5 {[%clk 0:02:27.8]}
11... Nd7 {[%clk 0:02:58.8]} 12. Bb2 {[%clk 0:02:28.1]} 12... Bf6 {[%clk
0:02:59.9]} 13. Bxf6 {[%clk 0:02:28.8]} 13... Nxf6 {[%clk 0:02:56.8]} 14. Qe1
{[%clk 0:02:29.7]} 14... Re8 {[%clk 0:02:51.1]} 15. e4 {[%clk 0:02:30.4]} 15...
e5 {[%clk 0:02:50.1]} 16. h3 {[%clk 0:02:30.1]} 16... Bh5 {[%clk 0:02:43.2]} 17.
f4 {[%clk 0:02:30.9]} 17... exf4 {[%clk 0:02:42.2]} 18. gxf4 {[%clk 0:02:29.7]}
18... dxe4 {[%clk 0:02:42.5]} 19. Nxe4 {[%clk 0:02:13.1]} 19... Nxe4 {[%clk
0:02:20.5]} 20. dxe4 {[%clk 0:02:13.8]} 20... f6 {[%clk 0:02:14.1]} 21. Qh4
{[%clk 0:02:10.4]} 21... Bg6 {[%clk 0:02:07.4]} 22. Rad1 {[%clk 0:01:59.9]}
22... Qb6+ {[%clk 0:02:02.6]} 23. Qf2 {[%clk 0:01:58.3]} 23... Qxf2+ {[%clk
0:01:50.4]} 24. Rxf2 {[%clk 0:02:00.2]} 24... Rad8 {[%clk 0:01:44.1]} 25. Rfd2
{[%clk 0:01:39.7]} 25... Rxd2 {[%clk 0:01:43.3]} 26. Rxd2 {[%clk 0:01:41.6]}
26... Bxe4 {[%clk 0:01:36.1]} 27. Rd7 {[%clk 0:01:42.4]} 27... Bxg2 {[%clk
0:01:32.5]} 28. Kxg2 {[%clk 0:01:44.3]} 28... Re2+ {[%clk 0:01:26.5]} 29. Kf3
{[%clk 0:01:44.3]} 29... Rxc2 {[%clk 0:01:27.4]} 30. Rxb7 {[%clk 0:01:45.8]}
30... Rc3+ {[%clk 0:01:21.3]} 31. Kg2 {[%clk 0:01:46.1]} 31... h5 {[%clk
0:00:56.1]} 32. Rb6 {[%clk 0:01:39.5]} 32... h4 {[%clk 0:00:54.5]} 33. b4 {[%clk
0:01:37.5]} 33... a4 {[%clk 0:00:50.4]} 34. Ra6 {[%clk 0:01:38.5]} 34... Rg3+
{[%clk 0:00:48.5]} 35. Kh2 {[%clk 0:01:37.7]} 35... Rxa3 {[%clk 0:00:49.4]} 36.
Rxc6 {[%clk 0:01:38.6]} 36... Ra2+ {[%clk 0:00:50.6]} 37. Kg1 {[%clk 0:01:39.7]}
37... Rb2 {[%clk 0:00:50.6]} 38. Ra6 {[%clk 0:01:14.5]} 38... Rxb4 {[%clk
0:00:50.2]} 39. f5 {[%clk 0:01:16.4]} 39... Kh7 {[%clk 0:00:46.3]} 40. Kg2
{[%clk 0:01:16.1]} 40... Kh6 {[%clk 0:00:44.6]} 41. Kf3 {[%clk 0:01:17.2]} 41...
Kg5 {[%clk 0:00:39.4]} 42. Ra7 {[%clk 0:01:12]} 42... Kxf5 {[%clk 0:00:33.5]}
43. Rxg7 {[%clk 0:01:11.9]} 43... Rb3+ {[%clk 0:00:34.6]} 44. Kf2 {[%clk
0:01:11.6]} 44... Rxh3 {[%clk 0:00:28.2]} 45. Ra7 {[%clk 0:01:13.5]} 45... a3
{[%clk 0:00:28.8]} 46. Ra5+ {[%clk 0:01:13.8]} 46... Kg6 {[%clk 0:00:29.3]} 47.
Kg2 {[%clk 0:01:15.7]} 47... Rg3+ {[%clk 0:00:29.8]} 48. Kh2 {[%clk 0:01:17.6]}
48... Rb3 {[%clk 0:00:30.9]} 49. Kg2 {[%clk 0:01:17.7]} 49... f5 {[%clk
0:00:31.6]} 50. Ra6+ {[%clk 0:01:18.1]} 50... Kg5 {[%clk 0:00:32.7]} 51. Ra8
{[%clk 0:01:20]} 51... Kg4 {[%clk 0:00:27.6]} 52. Rg8+ {[%clk 0:01:18.8]} 52...
Kf4 {[%clk 0:00:28.7]} 53. Ra8 {[%clk 0:01:20.7]} 53... Ke4 {[%clk 0:00:27]} 54.
Kf2 {[%clk 0:01:17.1]} 54... h3 {[%clk 0:00:24.7]} 0-1

[Event "*** Titled Tuesday Blitz"]
[Site "Chess.com"]
[Date "2019.04.02"]
[Round "5"]
[White "ElGasanov"]
[Black "Oleg_Papayan"]
[Result "1-0"]
[WhiteElo "2679"]
[BlackElo "2507"]
[TimeControl "180+2"]
[EndTime "15:03:52 PDT"]
[Termination "ElGasanov won by resignation"]

1. c4 {[%clk 0:03:01.9]} 1... Nf6 {[%clk 0:02:58.5]} 2. Nc3 {[%clk 0:03:02.4]}
2... e6 {[%clk 0:02:57.4]} 3. e4 {[%clk 0:03:02.7]} 3... d6 {[%clk 0:02:55.9]}
4. d4 {[%clk 0:03:03.4]} 4... Nbd7 {[%clk 0:02:56.1]} 5. Nf3 {[%clk 0:03:01.9]}
5... e5 {[%clk 0:02:57.3]} 6. Be2 {[%clk 0:03:03.2]} 6... Be7 {[%clk 0:02:57.9]}
7. O-O {[%clk 0:03:04.2]} 7... O-O {[%clk 0:02:59.4]} 8. Qc2 {[%clk 0:03:05.2]}
8... exd4 {[%clk 0:02:52.5]} 9. Nxd4 {[%clk 0:03:05.8]} 9... Re8 {[%clk
0:02:54.4]} 10. Be3 {[%clk 0:02:56.7]} 10... Bf8 {[%clk 0:02:55]} 11. Rad1
{[%clk 0:02:53.9]} 11... g6 {[%clk 0:02:54.7]} 12. Rfe1 {[%clk 0:02:48.3]} 12...
Bg7 {[%clk 0:02:56.1]} 13. f3 {[%clk 0:02:41.8]} 13... a5 {[%clk 0:02:57.3]} 14.
Ndb5 {[%clk 0:02:41.6]} 14... b6 {[%clk 0:02:32.2]} 15. a3 {[%clk 0:02:30.3]}
15... Bb7 {[%clk 0:02:32.7]} 16. b4 {[%clk 0:02:29.9]} 16... axb4 {[%clk
0:02:34.6]} 17. axb4 {[%clk 0:02:31.8]} 17... Ne5 {[%clk 0:01:52.1]} 18. c5
{[%clk 0:02:25.5]} 18... bxc5 {[%clk 0:01:46.7]} 19. bxc5 {[%clk 0:02:26.3]}
19... Ra6 {[%clk 0:01:31.6]} 20. Nxc7 {[%clk 0:01:50.6]} 20... Qxc7 {[%clk
0:01:29.5]} 21. Bxa6 {[%clk 0:01:52.2]} 21... Bxa6 {[%clk 0:01:27.4]} 22. cxd6
{[%clk 0:01:53.4]} 22... Qd7 {[%clk 0:01:21]} 23. Nd5 {[%clk 0:01:49.2]} 23...
Nxd5 {[%clk 0:01:16.6]} 24. Rxd5 {[%clk 0:01:50.6]} 24... Rc8 {[%clk 0:00:56.7]}
25. Qd1 {[%clk 0:01:45.7]} 25... Nc4 {[%clk 0:00:35.6]} 26. Bf2 {[%clk
0:01:17.9]} 26... Bc3 {[%clk 0:00:35.4]} 27. Rf1 {[%clk 0:00:57.1]} 27... Nb2
{[%clk 0:00:25.4]} 28. Qb3 {[%clk 0:00:57.5]} 28... Bxf1 {[%clk 0:00:24.9]} 29.
Kxf1 {[%clk 0:00:59.2]} 29... Bg7 {[%clk 0:00:18.7]} 30. g4 {[%clk 0:00:58]}
30... Nc4 {[%clk 0:00:19.9]} 31. Kg2 {[%clk 0:00:56.1]} 31... Ne5 {[%clk
0:00:16.1]} 32. Bg3 {[%clk 0:00:53.2]} 32... Nc4 {[%clk 0:00:12.9]} 33. Qb5
{[%clk 0:00:50.8]} 33... Ne3+ {[%clk 0:00:13.3]} 34. Kh3 {[%clk 0:00:50.3]}
34... Qe6 {[%clk 0:00:12.1]} 35. d7 {[%clk 0:00:50.8]} 35... Rd8 {[%clk
0:00:12.9]} 36. Rd3 {[%clk 0:00:46.9]} 36... Nc4 {[%clk 0:00:12.6]} 37. Bc7
{[%clk 0:00:44.5]} 37... Na3 {[%clk 0:00:04.4]} 38. Qd5 {[%clk 0:00:36.8]} 38...
Rxd7 {[%clk 0:00:04.5]} 39. Qxe6 {[%clk 0:00:37.9]} 39... fxe6 {[%clk
0:00:06.2]} 40. Rxd7 {[%clk 0:00:38.5]} 40... Nc4 {[%clk 0:00:08.1]} 41. Bf4
{[%clk 0:00:36.8]} 41... Ne5 {[%clk 0:00:05.7]} 42. Rxg7+ {[%clk 0:00:37.4]} 1-0